bitfinex-derivatives/quotes_SOLF0:USTF0_20250808
["timestamp","ask_amount","ask_price","bid_price","bid_amount"]
[1754650624700,0.03906778,176.8,176.79,8.8753]
[1754650628703,3.10906778,176.8,176.79,8.8753]
[1754650629299,3.10906778,176.8,176.79,8.7253]
[1754650630600,0.03906778,176.8,176.79,8.7253]
[1754650632608,106.85121478,176.94,176.79,8.7253]
[1754650632609,3.17121478,176.9,176.87,5.6527]
[1754650632812,10.0,176.89,176.87,8.7227]
[1754650633309,3.07,176.88,176.87,8.7227]
[1754650634504,10.0,176.89,176.88,8.7224]
[1754650634716,10.0,176.93,176.87,3.07]
[1754650634903,10.0,176.93,176.86,3.20746779]
[1754650634904,3.07,176.92,176.86,3.20746779]
[1754650635109,3.07,176.92,176.88,3.07]
[1754650635304,3.07,176.92,176.89,5.6521]
[1754650635811,3.07,176.92,176.88,5.6523]
[1754650636002,3.07,176.92,176.86,3.20746779]
[1754650636208,3.07,176.91,176.87,3.07]
[1754650636605,3.07,176.9,176.87,3.07]
[1754650637510,3.07,176.9,176.89,5.6521]
[1754650637712,3.07,176.9,176.89,8.7221]
[1754650639319,3.07,176.93,176.89,3.07]
[1754650639606,3.07,176.92,176.89,3.07]
[1754650639814,10.0,176.95,176.89,3.07]
[1754650639815,3.07,176.94,176.89,3.07]
[1754650640009,3.07,176.94,176.89,3.11209783]
[1754650640210,3.07,176.94,176.9,8.7216]
[1754650640511,3.07,176.94,176.89,0.04209783]
[1754650640711,3.07,176.94,176.9,3.07]
[1754650640910,3.07,176.94,176.92,5.6511]
[1754650641214,3.07,176.94,176.92,3.07]
[1754650641914,3.07,176.94,176.9,3.07]
[1754650642115,3.07,176.93,176.89,5.69419783]
[1754650642317,3.07,176.93,176.89,0.04209783]
[1754650642816,3.07,176.91,176.89,0.04209783]
[1754650645416,3.07,176.91,176.89,5.69419783]
[1754650645617,3.07,176.91,176.89,8.76419783]
[1754650647209,3.07,176.92,176.89,0.04209783]
[1754650648109,3.17121478,176.91,176.89,0.04209783]
[1754650648315,3.07,176.9,176.81,3.17121478]
[1754650648618,10.0,176.93,176.88,5.6524]
[1754650648619,3.07,176.89,176.88,5.6524]
[1754650648814,13.07,176.93,176.88,3.07]
[1754650649008,3.17121478,176.97,176.9,3.17121478]
[1754650649214,3.07,176.94,176.91,3.07]
[1754650649415,3.07,176.94,176.93,3.07]
[1754650649717,3.1092526,176.94,176.93,3.07]
[1754650650313,0.0392526,176.94,176.93,8.7208]
[1754650656819,3.05,177.0,176.99,5.6489]
[1754650657016,3.05,177.0,176.99,8.7889]
[1754650657923,3.05,177.0,176.99,3.14]
[1754650658124,3.05,177.0,176.98,3.1814537]
[1754650658421,3.05,177.0,176.98,8.8304537]
[1754650658621,13.17121478,177.03,176.98,8.8304537]
[1754650658823,3.05,177.02,176.98,8.8304537]
[1754650659521,3.05,177.02,176.98,5.6904537]
[1754650659924,3.05,177.02,176.98,8.8304537]
[1754650660219,3.05,177.02,177.0,3.14]
[1754650660618,3.05,177.02,176.98,3.1814537]
[1754650661016,3.17121478,177.01,176.98,0.0414537]
[1754650661216,3.05,177.0,176.98,0.0414537]
[1754650662819,3.17121478,177.01,176.92,3.14]
[1754650662820,6.22121478,176.99,176.92,3.14]
[1754650663022,3.05,176.98,176.94,5.6503]
[1754650663523,3.05,176.98,176.94,8.7903]
[1754650664223,3.05,176.98,176.9,3.17121478]
[1754650664430,3.05,176.98,176.95,3.14]
[1754650665125,3.09024275,176.98,176.95,3.14]
[1754650665427,3.05,176.97,176.95,5.6502]
[1754650665827,3.05,176.96,176.95,8.7902]
[1754650667722,3.05,176.96,176.94,5.6504]
[1754650667930,3.05,176.96,176.94,3.14]
[1754650668324,3.05,176.97,176.95,3.14]
[1754650668724,3.05,176.97,176.9,3.17121478]
[1754650669029,3.05,176.97,176.94,3.14]
[1754650669529,3.05,176.97,176.94,8.7908]
[1754650670430,3.05,176.96,176.94,3.14]
[1754650670631,3.05,176.96,176.93,5.651]
[1754650670933,3.05,176.96,176.93,8.791]
[1754650672331,10.04024275,176.98,176.91,3.14]
[1754650672332,3.05,176.94,176.91,3.14]
[1754650672533,3.05,176.92,176.88,13.45]
[1754650672734,3.05,176.92,176.9,3.14]
[1754650673031,3.09306222,176.92,176.9,3.14]
[1754650674122,0.04306222,176.92,176.9,3.14]
[1754650674328,3.09306222,176.92,176.91,3.14]
[1754650674732,0.04306222,176.92,176.91,3.14]
[1754650675128,3.09306222,176.92,176.91,3.14]
[1754650676932,0.04306222,176.92,176.91,8.7917]
[1754650677234,3.09306222,176.92,176.91,8.7917]
[1754650677928,3.09306222,176.92,176.91,3.14]
[1754650680427,0.04306222,176.92,176.91,3.14]
[1754650681132,3.09306222,176.92,176.91,3.14]
[1754650683226,3.09306222,176.92,176.86,3.14]
[1754650683637,3.09306222,176.92,176.89,5.6523]
[1754650683838,3.09306222,176.92,176.9,3.14]
[1754650684134,0.04306222,176.92,176.9,3.14]
[1754650684538,0.04306222,176.92,176.9,8.792]
[1754650684838,0.04306222,176.92,176.89,3.17121478]
[1754650685334,3.05,177.0,176.91,6.31121478]
[1754650685539,3.05,177.01,176.95,3.14]
[1754650685838,3.05,177.0,176.98,3.14]
[1754650686037,2.98,176.99,176.98,3.14]
[1754650694842,2.98,176.98,176.97,0.03667372]
[1754650695042,6.15121478,176.98,176.97,0.03667372]
[1754650697039,6.15121478,176.98,176.97,3.24667372]
[1754650698543,6.15121478,176.98,176.97,0.03667372]
[1754650698937,6.15121478,176.98,176.97,3.24667372]
[1754650700446,6.15121478,176.98,176.97,0.03667372]
[1754650700841,2.98,176.98,176.97,3.24667372]
[1754650701042,6.15121478,176.98,176.97,3.24667372]
[1754650702149,2.98,176.98,176.97,3.24667372]
[1754650707046,2.98,176.98,176.88,3.17121478]
[1754650707247,3.17121478,176.96,176.89,3.21]
[1754650707443,2.98,176.97,176.9,3.17121478]
[1754650707647,10.0,176.98,176.91,3.21]
[1754650708048,10.0,176.98,176.93,5.6509]
[1754650708252,2.98,176.97,176.94,3.21]
[1754650708439,0.03896806,176.96,176.94,3.21]
[1754650708643,0.03896806,176.96,176.94,8.8607]
[1754650708845,0.03896806,176.96,176.95,3.21]
[1754650709953,0.03896806,176.96,176.95,8.8605]
[1754650713254,0.03896806,176.96,176.95,3.21]
[1754650713453,3.01896806,176.96,176.89,3.21]
[1754650713852,3.01896806,176.96,176.93,5.6511]
[1754650714057,3.01896806,176.96,176.94,3.21]
[1754650715256,2.98,176.95,176.93,5.6511]
[1754650715756,2.98,176.95,176.94,3.21]
[1754650715954,2.98,176.95,176.94,8.8608]
[1754650718758,0.03896806,176.96,176.95,3.16]
[1754650718759,3.15896806,176.96,176.95,3.16]
[1754650728760,0.03896806,176.96,176.95,3.16]
[1754650729059,2.0654128,176.96,176.95,8.8102]
[1754650729264,5.1854128,176.96,176.95,8.8102]
[1754650729755,5.1854128,176.96,176.95,3.16]
[1754650729957,2.0654128,176.96,176.94,3.16]
[1754650730259,3.12,176.95,176.94,3.16]
[1754650730660,5.14644474,176.95,176.94,3.16]
[1754650732157,2.02644474,176.95,176.9,3.16]
[1754650732359,2.02644474,176.92,176.9,3.16]
[1754650732559,5.14644474,176.93,176.91,5.6512]
[1754650732760,5.14644474,176.93,176.92,3.16]
[1754650732957,5.18473465,176.93,176.92,3.16]
[1754650733165,2.06473465,176.93,176.92,8.8111]
[1754650734163,0.03828991,176.93,176.92,8.8111]
[1754650738759,3.15828991,176.93,176.92,8.8111]
[1754650739960,0.03828991,176.93,176.92,8.8111]
[1754650743772,0.03828991,176.93,176.92,10.83754474]
[1754650744461,0.03828991,176.93,176.92,8.8111]
[1754650744662,0.03828991,176.93,176.92,10.83754474]
[1754650745863,0.03828991,176.93,176.92,8.8111]
[1754650746172,3.00828991,176.93,176.92,3.16]
[1754650746570,3.00828991,176.93,176.92,8.8114]
[1754650747776,3.00828991,176.93,176.92,3.16]
[1754650748175,3.00828991,176.93,176.92,8.8114]
[1754650749076,3.00828991,176.93,176.9,5.30644474]
[1754650749272,3.00828991,176.93,176.91,3.28]
[1754650750281,3.00828991,176.93,176.92,3.28]
[1754650752081,3.00828991,176.93,176.92,8.9314]
[1754650757791,3.00828991,176.93,176.92,3.28]
[1754650758486,5.03473465,176.93,176.92,3.28]
[1754650761791,3.00828991,176.93,176.92,3.28]
[1754650764293,2.97,176.92,176.91,3.28]
[1754650764490,4.99644474,176.92,176.91,3.28]
[1754650765397,3.00828991,176.93,176.91,3.28]
[1754650766291,3.00828991,176.93,176.9,7.67824474]
[1754650766493,3.00828991,176.93,176.92,3.28]
[1754650773796,2.97,176.92,176.89,3.28]
[1754650774393,2.97,176.92,176.88,7.67904474]
[1754650774693,2.97,176.92,176.9,3.28]
[1754650774996,2.02644474,176.91,176.9,3.28]
[1754650775197,4.99644474,176.91,176.9,3.28]
[1754650777693,2.06473465,176.93,176.9,3.28]
[1754650777897,0.03828991,176.93,176.9,5.04644474]
[1754650778194,0.03828991,176.93,176.9,3.02]
[1754650778195,2.98,176.92,176.9,3.02]
[1754650778396,2.98,176.91,176.9,3.02]
[1754650785198,5.00644474,176.91,176.9,3.02]
[1754650785400,2.98,176.9,176.87,13.43]
[1754650785598,5.00644474,176.88,176.87,10.41]
[1754650785792,2.98,176.87,176.85,3.02]
[1754650785992,5.00644474,176.86,176.85,3.02]
[1754650786194,2.98,176.86,176.85,3.02]
[1754650786804,0.03819998,176.88,176.85,5.04644474]
[1754650787101,0.03819998,176.88,176.87,10.69944474]
[1754650788606,0.03819998,176.88,176.87,3.02]
[1754650788806,3.01819998,176.88,176.87,3.02]
[1754650791608,0.03819998,176.88,176.87,3.02]
[1754650792707,3.01819998,176.88,176.87,3.02]
[1754650792907,0.03819998,176.88,176.84,3.02]
[1754650793304,0.03819998,176.88,176.85,5.6532]
[1754650793605,3.01819998,176.88,176.86,3.02]
[1754650795912,0.03819998,176.88,176.86,3.02]
[1754650796110,2.98,176.87,176.86,3.02]
[1754650797206,3.01819998,176.88,176.86,3.02]
[1754650799614,0.03819998,176.88,176.86,8.6728]
[1754650799815,0.03819998,176.88,176.87,3.02]
[1754650800512,0.03819998,176.88,176.87,8.6726]
[1754650800712,3.16853748,176.95,176.87,6.18853748]
[1754650800913,2.98,176.94,176.88,3.02]
[1754650802115,2.98,176.94,176.89,0.03648072]
[1754650802318,2.98,176.94,176.9,3.02]
[1754650804013,2.98,176.93,176.91,3.02]
[1754650804515,2.98,176.95,176.92,3.02]
[1754650804717,3.16853748,176.97,176.92,3.02]
[1754650804910,2.98,176.96,176.92,3.02]
[1754650805106,2.98,176.98,176.92,3.02]
[1754650805615,2.98,176.98,176.94,5.6503]
[1754650805915,2.98,176.98,176.96,3.02]
[1754650808216,2.99,176.99,176.93,3.18]
[1754650808715,2.99,176.99,176.94,5.6501]
[1754650808915,2.99,176.99,176.95,3.18]
[1754650809115,2.99,176.98,176.95,3.18]
[1754650809822,2.99,176.98,176.95,3.21731201]
[1754650810020,2.99,176.98,176.95,5.68721201]
[1754650810214,2.99,176.98,176.96,3.18]
[1754650810415,2.99,177.0,176.96,3.18]
[1754650810611,2.99,176.99,176.96,3.18]
[1754650811316,2.99,176.98,176.96,3.18]
[1754650811526,2.99,176.98,176.96,3.22312206]
[1754650812119,3.16853748,177.03,176.96,0.04312206]
[1754650812323,2.99,176.98,176.97,3.18]
[1754650813013,3.16853748,177.01,176.96,0.04312206]
[1754650813212,6.15853748,176.97,176.96,0.04312206]
[1754650813423,6.15853748,176.97,176.91,3.18]
[1754650813625,2.99,176.96,176.91,3.18]
[1754650813820,2.99,176.96,176.95,0.04063716]
[1754650815423,2.99,176.96,176.95,3.22063716]
[1754650815622,2.99,176.96,176.95,0.04063716]
[1754650815820,6.15853748,176.96,176.95,0.04063716]
[1754650816925,2.99,176.96,176.95,3.22063716]
[1754650818625,2.99,176.96,176.95,0.04063716]
[1754650819627,2.99,176.96,176.95,3.22063716]
[1754650820928,2.99,176.96,176.95,0.04063716]
[1754650821629,2.99,176.96,176.95,3.22063716]
[1754650823130,12.99,176.97,176.95,3.22063716]
[1754650823326,2.99,176.97,176.95,3.22063716]
[1754650823731,2.99,176.97,176.96,3.18]
[1754650824631,2.99,176.97,176.95,0.04063716]
[1754650825031,2.99,176.98,176.95,0.04063716]
[1754650825335,2.99,176.98,176.96,3.18]
[1754650826823,2.99,177.01,176.96,3.18]
[1754650827027,2.99,177.01,176.95,0.04063716]
[1754650827028,2.99,176.99,176.95,3.22063716]
[1754650827223,2.99,176.99,176.95,3.18]
[1754650827628,2.99,176.99,176.95,3.22160456]
[1754650827928,2.99,176.99,176.96,3.18]
[1754650829735,3.16853748,176.98,176.95,0.04160456]
[1754650830035,2.99,176.97,176.95,0.04160456]
[1754650832335,2.99,176.97,176.95,3.22160456]
[1754650834037,2.99,176.97,176.96,3.18]
[1754650836244,3.05,176.99,176.97,3.16]
[1754650837238,3.05,176.99,176.95,0.04160456]
[1754650837543,3.16853748,176.96,176.95,0.04160456]
[1754650837742,6.21853748,176.96,176.95,0.04160456]
[1754650838244,3.05,176.96,176.95,3.20160456]
[1754650839139,380.24,177.08,176.95,3.20160456]
[1754650839140,13.16853748,177.0,176.95,3.20160456]
[1754650839342,13.16853748,177.0,176.96,3.16]
[1754650839343,3.05,176.99,176.96,3.16]
[1754650839842,3.05,176.99,176.96,3.19741208]
[1754650840238,3.05,176.99,176.97,3.16]
[1754650841243,3.05,176.98,176.96,0.03741208]
[1754650841844,3.05,176.98,176.97,3.16]
[1754650842343,3.05,176.99,176.97,3.16]
[1754650842542,3.05,176.99,176.98,3.16]
[1754650844841,3.05,177.0,176.98,3.16]
[1754650845142,3.16853748,177.03,176.96,0.03741208]
[1754650845339,3.05,177.0,176.96,0.03741208]
[1754650845541,3.05,177.0,176.94,3.16853748]
[1754650845542,3.05,177.02,176.94,3.16853748]
[1754650845739,3.05,177.02,176.9,9.66]
[1754650846041,3.05,177.02,176.97,3.16]
[1754650847440,3.16853748,177.01,176.96,0.03963336]
[1754650847645,3.05,177.0,176.98,3.16]
[1754650848150,3.05,176.98,176.96,0.03963336]
[1754650848349,6.21853748,176.97,176.96,0.03963336]
[1754650848950,6.21853748,176.97,176.96,3.19963336]
[1754650849254,13.05,176.99,176.96,3.19963336]
[1754650849547,3.05,176.99,176.96,0.03963336]
[1754650849740,3.05,176.99,176.97,3.16]
[1754650850344,3.05,176.99,176.96,0.03963336]
[1754650850646,3.05,176.98,176.97,3.16]
[1754650852650,3.05,176.98,176.96,3.19963336]
[1754650852849,3.16853748,176.97,176.96,0.03963336]
[1754650853047,6.21853748,176.97,176.96,0.03963336]
[1754650853450,16.21853748,176.97,176.96,0.03963336]
[1754650860055,13.16853748,176.97,176.96,3.19963336]
[1754650860259,16.21853748,176.97,176.96,3.19963336]
[1754650861158,10.0,176.97,176.96,3.19963336]
[1754650861364,3.05,176.99,176.96,3.19963336]
[1754650861365,6.21853748,176.99,176.96,3.19963336]
[1754650861961,3.16853748,176.99,176.96,3.19963336]
[1754650862159,3.05,176.98,176.96,3.19963336]
[1754650862356,6.21853748,176.97,176.96,0.03963336]
[1754650862662,6.21853748,176.97,176.96,3.19963336]
[1754650863365,3.16853748,176.97,176.96,3.19963336]
[1754650863961,3.16853748,176.99,176.97,3.16]
[1754650864355,6.21853748,176.99,176.97,3.16]
[1754650864555,6.21853748,176.99,176.98,3.16]
[1754650866553,6.21853748,176.99,176.96,3.09963336]
[1754650866760,3.0,176.98,176.97,3.06]
[1754650868368,3.16853748,176.99,176.97,3.06]
[1754650868665,6.16853748,176.99,176.98,3.06]
[1754650871061,3.0,176.98,176.96,3.09963336]
[1754650871263,3.0,176.97,176.96,0.03963336]
[1754650871969,3.0,176.97,176.96,3.09963336]
[1754650872565,3.0,176.97,176.96,0.03963336]
[1754650872963,3.0,176.97,176.96,3.09963336]
[1754650873571,6.16853748,176.99,176.96,3.09963336]
[1754650875967,3.0,176.98,176.96,3.09963336]
[1754650878871,3.0,177.0,176.96,3.09963336]
[1754650879071,3.0,176.98,176.96,3.09963336]
[1754650879272,3.0,176.98,176.96,3.06]
[1754650879973,3.16853748,176.97,176.95,0.04094513]
[1754650880274,3.0,176.96,176.95,0.04094513]
[1754650880477,3.0,176.96,176.95,3.10094513]
[1754650881978,3.16853748,176.97,176.95,3.10094513]
[1754650882175,6.16853748,176.97,176.95,3.10094513]
[1754650882375,3.0,176.98,176.95,3.10094513]
[1754650884180,3.0,176.97,176.95,3.10094513]
[1754650886279,3.16853748,176.99,176.95,3.10094513]
[1754650886477,3.0,176.96,176.95,0.04094513]
[1754650890278,3.0,176.96,176.95,3.10094513]
[1754650891079,3.16853748,176.97,176.95,3.10094513]
[1754650891276,6.16853748,176.97,176.95,3.10094513]
[1754650891585,3.0,176.96,176.95,3.10094513]
[1754650895287,6.16853748,176.97,176.95,3.10094513]
[1754650896188,3.09,176.96,176.95,3.11094513]
[1754650896689,16.25853748,176.99,176.96,3.07]
[1754650897479,16.25853748,176.99,176.96,3.10572589]
[1754650897682,3.09,177.01,176.96,3.10572589]
[1754650897883,3.09,177.02,176.98,3.07]
[1754650898491,3.09,177.02,176.98,3.10868429]
[1754650900588,3.09,177.01,176.99,3.07]
[1754650901294,3.09,177.01,177.0,3.07]
[1754650901495,3.09,177.01,176.98,0.03965351]
[1754650901694,6.25853748,176.99,176.98,0.03965351]
[1754650904699,3.09,176.98,176.93,3.07]
[1754650905397,3.09,176.98,176.94,3.07]
[1754650905705,3.16853748,176.95,176.89,3.07]
[1754650905890,3.09,176.93,176.91,3.07]
[1754650906088,3.09,176.94,176.91,3.07]
[1754650906291,3.12585221,176.94,176.91,8.721]
[1754650906597,3.12585221,176.94,176.92,3.07]
[1754650907290,3.12585221,176.94,176.91,5.651]
[1754650907491,3.12585221,176.94,176.93,3.07]
[1754650907690,3.12585221,176.94,176.91,3.07]
[1754650907891,3.12585221,176.94,176.92,3.07]
[1754650907892,6.25853748,176.93,176.92,3.07]
[1754650908395,6.25853748,176.93,176.88,3.07]
[1754650908396,3.09,176.92,176.88,3.07]
[1754650908897,6.25853748,176.93,176.91,3.07]
[1754650909393,3.16853748,176.93,176.91,3.07]
[1754650910086,6.25853748,176.93,176.91,3.07]
[1754650910498,3.09,176.92,176.89,5.6517]
[1754650910697,3.09,176.91,176.89,5.6517]
[1754650911001,3.09,176.91,176.9,3.07]
[1754650912800,3.16853748,176.93,176.9,3.07]
[1754650912997,3.09,176.92,176.9,3.07]
[1754650913395,3.16853748,176.93,176.9,3.07]
[1754650913705,6.25853748,176.93,176.9,3.07]
[1754650914002,6.25853748,176.92,176.87,3.07]
[1754650914602,6.25853748,176.92,176.89,5.6516]
[1754650914798,6.25853748,176.92,176.9,3.07]
[1754650915200,6.25853748,176.92,176.9,8.7215]
[1754650915396,6.25853748,176.92,176.91,3.07]
[1754650917299,6.29438969,176.94,176.92,3.07]
[1754650917498,3.20438969,176.94,176.92,3.07]
[1754650917700,3.16853748,176.96,176.93,5.6503]
[1754650917900,6.25853748,176.96,176.94,3.07]
[1754650918307,16.25853748,176.98,176.95,8.7199]
[1754650918605,3.09,176.97,176.96,3.07]
[1754650919411,3.09,176.97,176.95,3.07]
[1754650919597,3.09,176.96,176.95,3.07]
[1754650919801,3.09,176.96,176.94,3.07]
[1754650920716,3.09,176.96,176.94,8.7203]
[1754650920909,3.09,176.96,176.95,3.07]
[1754650921613,3.16853748,176.96,176.89,3.07]
[1754650921813,3.09,176.95,176.89,3.07]
[1754650922416,3.09,176.95,176.91,5.651]
[1754650922710,3.09,176.95,176.86,103.26]
[1754650922711,3.09,176.97,176.92,3.07]
[1754650922908,3.09,176.96,176.94,3.07]
[1754650923514,3.09,176.95,176.94,3.07]
[1754650924409,3.09,176.95,176.93,3.07]
[1754650927118,3.11,176.95,176.93,3.22]
[1754650928317,3.11,176.94,176.91,5.6511]
[1754650928813,3.11,176.94,176.92,3.22]
[1754650932116,3.11,176.94,176.9,5.6514]
[1754650932615,3.11,176.94,176.92,3.22]
[1754650932812,3.16853748,176.95,176.92,3.22]
[1754650933017,3.16853748,176.95,176.87,12.61853748]
[1754650933018,3.11,176.94,176.87,12.61853748]
[1754650933214,3.11,176.94,176.88,3.22]
[1754650933408,3.11,176.94,176.91,5.6511]
[1754650933606,3.11,176.94,176.92,3.22]
[1754650934218,3.11,176.94,176.91,5.6511]
[1754650934517,3.11,176.94,176.92,3.22]
[1754650935020,3.11,176.94,176.93,3.22]
[1754650940726,5.13676405,176.94,176.93,3.22]
[1754650941724,10.0,176.97,176.93,3.22]
[1754650941929,5.13676405,176.94,176.93,3.22]
[1754650943122,3.11,176.94,176.93,3.22]
[1754650943327,5.13676405,176.94,176.93,3.22]
[1754650944831,3.11,176.94,176.93,3.22]
[1754650945028,5.13676405,176.94,176.93,3.22]
[1754650952834,10.0,176.97,176.93,3.22]
[1754650953137,2.02676405,176.94,176.93,8.8706]
[1754650953326,3.11,176.96,176.94,3.22]
[1754650953525,5.13676405,176.96,176.94,3.22]
[1754650954831,2.02676405,176.95,176.94,3.22]
[1754650955133,5.13676405,176.95,176.94,3.22]
[1754650956936,5.13676405,176.95,176.94,2.98]
[1754650963044,5.08676405,176.95,176.87,2.98]
[1754650963238,5.08676405,176.9,176.88,2.98]
[1754650963638,2.02676405,176.9,176.89,8.6317]
[1754650963844,5.08676405,176.91,176.9,2.98]
[1754650964243,5.08676405,176.93,176.9,2.98]
[1754650964541,5.08676405,176.94,176.91,2.98]
[1754650964742,3.06,176.93,176.91,8.631]
[1754650964945,3.06,176.93,176.92,2.98]
[1754650965249,3.06,176.93,176.92,8.6309]
[1754650966448,5.08676405,176.94,176.92,8.6309]
[1754650966749,5.08676405,176.94,176.93,2.98]
[1754650968150,2.02676405,176.95,176.93,5.6506]
[1754650968447,5.08676405,176.95,176.94,2.98]
[1754650972352,5.08676405,176.95,176.92,2.98]
[1754650972552,5.08676405,176.94,176.93,2.98]
[1754650980053,2.02676405,176.94,176.93,2.98]
[1754650980359,5.08676405,176.94,176.93,2.98]
[1754650982861,2.02676405,176.94,176.93,2.98]
[1754650983460,5.08676405,176.94,176.93,2.98]
[1754650984762,5.08676405,176.94,176.9,5.6514]
[1754650984963,5.08676405,176.92,176.91,2.98]
[1754650986161,3.06,176.92,176.91,2.98]
[1754650986368,5.08676405,176.92,176.91,2.98]
[1754650986765,2.02676405,176.92,176.91,2.98]
[1754650988069,3.29,176.92,176.91,2.98]
[1754650989263,2.02676405,176.92,176.89,7.67856405]
[1754650989567,5.31676405,176.91,176.89,3.28]
[1754650989767,3.29,176.89,176.79,11.3102]
[1754650989964,2.02676405,176.87,176.84,5.6533]
[1754650990167,3.29,176.86,176.83,2.02676405]
[1754650990467,3.29,176.86,176.84,3.28]
[1754650990668,2.02676405,176.88,176.85,8.9331]
[1754650990861,2.02676405,176.88,176.86,3.28]
[1754650990862,3.29,176.88,176.86,3.28]
[1754650991263,5.31676405,176.88,176.86,3.28]
[1754650991568,3.29,176.9,176.87,3.28]
[1754650991769,5.31676405,176.9,176.87,3.28]
[1754650992270,2.02676405,176.9,176.87,3.28]
[1754650992471,3.29,176.88,176.87,3.28]
[1754650993872,3.29,176.9,176.87,3.28]
[1754650994566,3.29,176.9,176.87,8.9325]
[1754650994872,3.29,176.9,176.88,3.28]
[1754650995267,3.29,176.89,176.88,3.28]
[1754650996269,13.1681124,176.92,176.88,3.28]
[1754650996472,13.1681124,176.92,176.88,6.4481124]
[1754650996473,10.0,176.92,176.88,6.4481124]
[1754650996772,3.29,176.95,176.89,3.28]
[1754650996974,3.29,176.95,176.91,3.28]
[1754650997273,3.1681124,176.96,176.91,3.28]
[1754650997472,3.29,176.94,176.91,3.28]
[1754650997672,3.29,176.94,176.92,3.28]
[1754650999575,3.29,176.94,176.92,5.6509]
[1754650999777,3.29,176.94,176.93,3.28]
[1754651000076,3.29,176.95,176.93,3.28]
[1754651000278,3.29,176.97,176.94,3.28]
[1754651000680,3.1681124,176.99,176.94,8.9303]
[1754651000875,3.29,176.98,176.95,3.28]
[1754651001173,3.1681124,177.03,176.95,3.28]
[1754651001378,3.29,177.0,176.95,3.28]
[1754651002176,3.29,177.0,176.95,8.9298]
[1754651002380,3.29,177.0,176.96,3.28]
[1754651003473,10.0,177.01,176.96,8.9296]
[1754651003668,3.29,177.0,176.97,3.28]
[1754651004073,3.29,176.99,176.97,3.28]
[1754651006384,10.0,177.01,176.94,8.8181124]
[1754651006588,3.29,177.0,176.95,3.28]
[1754651007690,3.29,177.0,176.95,5.6497]
[1754651007888,3.29,177.0,176.96,3.28]
[1754651010389,3.29,176.99,176.96,3.28]
[1754651010891,10.0,177.01,176.96,3.28]
[1754651011093,3.29,177.0,176.97,3.28]
[1754651011287,10.0,177.01,176.97,3.28]
[1754651011481,3.29,176.99,176.97,3.28]
[1754651011686,3.29,176.98,176.97,3.28]
[1754651012994,3.29,176.98,176.96,3.28]
[1754651013793,3.29,176.98,176.97,3.28]
[1754651015393,3.29,177.0,176.97,3.28]
[1754651015587,3.29,176.99,176.97,8.9292]
[1754651015787,3.29,176.99,176.98,3.28]
[1754651017982,13.28,177.01,176.98,3.28]
[1754651018184,3.28,177.03,176.99,3.15]
[1754651018895,3.28,177.04,177.02,3.15]
[1754651019596,3.28,177.04,177.0,5.648]
[1754651019789,3.1681124,177.05,177.01,3.15]
[1754651019992,3.28,177.03,177.01,3.15]
[1754651020690,3.28,177.04,177.02,3.15]
[1754651020895,6.4481124,177.03,176.95,11.97]